{"text_format":"3","workbook":"xlsx","n_sheets":5,"sheets":["Рахунок-фактура","Клієнти","Рахунки-фактури – Основний","Відомості про рахунок-фактуру","Про журнал рахунків-фактур"],"not_rendered":{"defined_names":8},"read":"whole","date_system":"1900"}

{"sheet":"Рахунок-фактура","index":0,"n_rows":39,"n_cols":7,"rows_kept":39,"merged":[[1,1,1,2],[1,3,1,4],[1,5,1,6],[2,1,2,2],[2,3,2,4],[2,5,2,6],[3,3,3,4],[4,3,4,4],[5,3,5,4],[37,1,37,4],[38,1,38,4]]}
[null,"Назва компанії"]
[null,"Вулиця, будинок, офіс",null,"Т.: Номер телефону",null,"Електронна пошта"]
[null,"Місто, область, поштовий індекс",null,"Ф.: Номер факсу",null,"Веб-сайт"]
[null,"Одержувач рахунка:",{"$f":"IFERROR(VLOOKUP(VLOOKUP(ДіапазонНомерівРахунків,Рахунки_фактуриОсновний[],2,FALSE),СписокКлієнтів[],3,TRUE),\"\")","v":"Contoso, Ltd"},{"$f":"\"Телефон: \"&IFERROR(VLOOKUP(VLOOKUP(ДіапазонНомерівРахунків,Рахунки_фактуриОсновний[],2,FALSE),СписокКлієнтів[],9,FALSE),\"\")","v":"Телефон: (432) 555-01-89"},null,"№ рахунка:","3-456-2"]
[null,"Адреса:",{"$f":"IFERROR(IF((VLOOKUP(VLOOKUP(ДіапазонНомерівРахунків,Рахунки_фактуриОсновний[],2,FALSE),СписокКлієнтів[],5,FALSE))=\"\",\"\",(VLOOKUP(VLOOKUP(ДіапазонНомерівРахунків,Рахунки_фактуриОсновний[],2,FALSE),СписокКлієнтів[],5,FALSE))),\"\")","v":"вул. Кутова, 567"},{"$f":"\"Факс:       \"&IFERROR(VLOOKUP(VLOOKUP(ДіапазонНомерівРахунків,Рахунки_фактуриОсновний[],2,FALSE),СписокКлієнтів[],11,FALSE),\"\")","v":"Факс:       (432) 555-01-23"},null,"Дата виставлення рахунка:",{"$f":"IFERROR(IF(VLOOKUP(ДіапазонНомерівРахунків,Рахунки_фактуриОсновний[],3,FALSE)=\"\",\"\",VLOOKUP(ДіапазонНомерівРахунків,Рахунки_фактуриОсновний[],3,FALSE)),\"\")","v":{"v":43686,"d":"4368600.00%"}}]
[null,null,{"$f":"IFERROR(VLOOKUP(VLOOKUP(ДіапазонНомерівРахунків,Рахунки_фактуриОсновний[],2,FALSE),СписокКлієнтів[],6,FALSE)&\", \"& VLOOKUP(VLOOKUP(G4,Рахунки_фактуриОсновний[],2,FALSE),СписокКлієнтів[],7,FALSE)&\" \"&VLOOKUP(VLOOKUP(G4,Рахунки_фактуриОсновний[],2,FALSE),СписокКлієнтів[],8,FALSE),\"\")","v":"Миколаїв, Миколаївська обл. 098765"},{"$f":"\"Електронна пошта: \"&IFERROR(VLOOKUP(VLOOKUP(ДіапазонНомерівРахунків,Рахунки_фактуриОсновний[],2,FALSE),СписокКлієнтів[],10,FALSE),\"\")","v":"Електронна пошта: perevirka@example.com"}]
[null,{"$f":"\"Invoice For: \"&IFERROR(VLOOKUP(ДіапазонНомерівРахунків,Рахунки_фактуриОсновний[],4),\"\")","v":"Invoice For: Проект 2"}]
[null,"№ позиції","Опис","К-сть","Ціна за одиницю","Знижка","Ціна"]
[null,{"$f":"IFERROR(INDEX(Відомостіпрорахунокфактуру[],SMALL(IF(Відомостіпрорахунокфактуру[№ рахунка]=ДіапазонНомерівРахунків,ROW(Відомостіпрорахунокфактуру[])-ROW(Відомостіпрорахунокфактуру[#Headers])), ROW(1:1)), MATCH($B$8, Відомостіпрорахунокфактуру[#Headers], 0)),\"\")","v":"Z4567"},{"$f":"IFERROR(INDEX(Відомостіпрорахунокфактуру[],SMALL(IF(Відомостіпрорахунокфактуру[№ рахунка]=ДіапазонНомерівРахунків,ROW(Відомостіпрорахунокфактуру[])-ROW(Відомостіпрорахунокфактуру[#Headers])), ROW(1:1)), MATCH($C$8, Відомостіпрорахунокфактуру[#Headers], 0)),\"\")","v":"Дані 1 рахунка-фактури 3-456-2"},{"$f":"IFERROR(INDEX(Відомостіпрорахунокфактуру[],SMALL(IF(Відомостіпрорахунокфактуру[№ рахунка]=ДіапазонНомерівРахунків,ROW(Відомостіпрорахунокфактуру[])-ROW(Відомостіпрорахунокфактуру[#Headers])), ROW(1:1)), MATCH($D$8, Відомостіпрорахунокфактуру[#Headers], 0)),\"\")","v":39},{"$f":"IFERROR(INDEX(Відомостіпрорахунокфактуру[],SMALL(IF(Відомостіпрорахунокфактуру[№ рахунка]=ДіапазонНомерівРахунків,ROW(Відомостіпрорахунокфактуру[])-ROW(Відомостіпрорахунокфактуру[#Headers])), ROW(1:1)), MATCH($E$8, Відомостіпрорахунокфактуру[#Headers], 0)),\"\")","v":{"v":5,"d":"5.00₴"}},{"$f":"IFERROR(INDEX(Відомостіпрорахунокфактуру[],SMALL(IF(Відомостіпрорахунокфактуру[№ рахунка]=ДіапазонНомерівРахунків,ROW(Відомостіпрорахунокфактуру[])-ROW(Відомостіпрорахунокфактуру[#Headers])), ROW(1:1)), MATCH($F$8, Відомостіпрорахунокфактуру[#Headers], 0)),\"\")","v":0},{"$f":"IFERROR((D9*E9)-F9,\"\")","v":{"v":195,"d":"195.00₴"}}]
[null,{"$f":"IFERROR(INDEX(Відомостіпрорахунокфактуру[],SMALL(IF(Відомостіпрорахунокфактуру[№ рахунка]=ДіапазонНомерівРахунків,ROW(Відомостіпрорахунокфактуру[])-ROW(Відомостіпрорахунокфактуру[#Headers])), ROW(2:2)), MATCH($B$8, Відомостіпрорахунокфактуру[#Headers], 0)),\"\")","v":"Z4568"},{"$f":"IFERROR(INDEX(Відомостіпрорахунокфактуру[],SMALL(IF(Відомостіпрорахунокфактуру[№ рахунка]=ДіапазонНомерівРахунків,ROW(Відомостіпрорахунокфактуру[])-ROW(Відомостіпрорахунокфактуру[#Headers])), ROW(2:2)), MATCH($C$8, Відомостіпрорахунокфактуру[#Headers], 0)),\"\")","v":"Дані 2 рахунка-фактури 3-456-2"},{"$f":"IFERROR(INDEX(Відомостіпрорахунокфактуру[],SMALL(IF(Відомостіпрорахунокфактуру[№ рахунка]=ДіапазонНомерівРахунків,ROW(Відомостіпрорахунокфактуру[])-ROW(Відомостіпрорахунокфактуру[#Headers])), ROW(2:2)), MATCH($D$8, Відомостіпрорахунокфактуру[#Headers], 0)),\"\")","v":40},{"$f":"IFERROR(INDEX(Відомостіпрорахунокфактуру[],SMALL(IF(Відомостіпрорахунокфактуру[№ рахунка]=ДіапазонНомерівРахунків,ROW(Відомостіпрорахунокфактуру[])-ROW(Відомостіпрорахунокфактуру[#Headers])), ROW(2:2)), MATCH($E$8, Відомостіпрорахунокфактуру[#Headers], 0)),\"\")","v":{"v":4,"d":"4.00₴"}},{"$f":"IFERROR(INDEX(Відомостіпрорахунокфактуру[],SMALL(IF(Відомостіпрорахунокфактуру[№ рахунка]=ДіапазонНомерівРахунків,ROW(Відомостіпрорахунокфактуру[])-ROW(Відомостіпрорахунокфактуру[#Headers])), ROW(2:2)), MATCH($F$8, Відомостіпрорахунокфактуру[#Headers], 0)),\"\")","v":{"v":5,"d":"5.00₴"}},{"v":155,"d":"155.00₴"}]
[null,{"$f":"IFERROR(INDEX(Відомостіпрорахунокфактуру[],SMALL(IF(Відомостіпрорахунокфактуру[№ рахунка]=ДіапазонНомерівРахунків,ROW(Відомостіпрорахунокфактуру[])-ROW(Відомостіпрорахунокфактуру[#Headers])), ROW(3:3)), MATCH($B$8, Відомостіпрорахунокфактуру[#Headers], 0)),\"\")","v":"Z4569"},{"$f":"IFERROR(INDEX(Відомостіпрорахунокфактуру[],SMALL(IF(Відомостіпрорахунокфактуру[№ рахунка]=ДіапазонНомерівРахунків,ROW(Відомостіпрорахунокфактуру[])-ROW(Відомостіпрорахунокфактуру[#Headers])), ROW(3:3)), MATCH($C$8, Відомостіпрорахунокфактуру[#Headers], 0)),\"\")","v":"Дані 3 рахунка-фактури 3-456-2"},{"$f":"IFERROR(INDEX(Відомостіпрорахунокфактуру[],SMALL(IF(Відомостіпрорахунокфактуру[№ рахунка]=ДіапазонНомерівРахунків,ROW(Відомостіпрорахунокфактуру[])-ROW(Відомостіпрорахунокфактуру[#Headers])), ROW(3:3)), MATCH($D$8, Відомостіпрорахунокфактуру[#Headers], 0)),\"\")","v":30},{"$f":"IFERROR(INDEX(Відомостіпрорахунокфактуру[],SMALL(IF(Відомостіпрорахунокфактуру[№ рахунка]=ДіапазонНомерівРахунків,ROW(Відомостіпрорахунокфактуру[])-ROW(Відомостіпрорахунокфактуру[#Headers])), ROW(3:3)), MATCH($E$8, Відомостіпрорахунокфактуру[#Headers], 0)),\"\")","v":{"v":6,"d":"6.00₴"}},{"$f":"IFERROR(INDEX(Відомостіпрорахунокфактуру[],SMALL(IF(Відомостіпрорахунокфактуру[№ рахунка]=ДіапазонНомерівРахунків,ROW(Відомостіпрорахунокфактуру[])-ROW(Відомостіпрорахунокфактуру[#Headers])), ROW(3:3)), MATCH($F$8, Відомостіпрорахунокфактуру[#Headers], 0)),\"\")","v":{"v":7,"d":"7.00₴"}},{"v":173,"d":"173.00₴"}]
[null,{"$f":"IFERROR(INDEX(Відомостіпрорахунокфактуру[],SMALL(IF(Відомостіпрорахунокфактуру[№ рахунка]=ДіапазонНомерівРахунків,ROW(Відомостіпрорахунокфактуру[])-ROW(Відомостіпрорахунокфактуру[#Headers])), ROW(4:4)), MATCH($B$8, Відомостіпрорахунокфактуру[#Headers], 0)),\"\")","v":"Z4570"},{"$f":"IFERROR(INDEX(Відомостіпрорахунокфактуру[],SMALL(IF(Відомостіпрорахунокфактуру[№ рахунка]=ДіапазонНомерівРахунків,ROW(Відомостіпрорахунокфактуру[])-ROW(Відомостіпрорахунокфактуру[#Headers])), ROW(4:4)), MATCH($C$8, Відомостіпрорахунокфактуру[#Headers], 0)),\"\")","v":"Дані 4 рахунка-фактури 3-456-2"},{"$f":"IFERROR(INDEX(Відомостіпрорахунокфактуру[],SMALL(IF(Відомостіпрорахунокфактуру[№ рахунка]=ДіапазонНомерівРахунків,ROW(Відомостіпрорахунокфактуру[])-ROW(Відомостіпрорахунокфактуру[#Headers])), ROW(4:4)), MATCH($D$8, Відомостіпрорахунокфактуру[#Headers], 0)),\"\")","v":40},{"$f":"IFERROR(INDEX(Відомостіпрорахунокфактуру[],SMALL(IF(Відомостіпрорахунокфактуру[№ рахунка]=ДіапазонНомерівРахунків,ROW(Відомостіпрорахунокфактуру[])-ROW(Відомостіпрорахунокфактуру[#Headers])), ROW(4:4)), MATCH($E$8, Відомостіпрорахунокфактуру[#Headers], 0)),\"\")","v":{"v":7,"d":"7.00₴"}},{"$f":"IFERROR(INDEX(Відомостіпрорахунокфактуру[],SMALL(IF(Відомостіпрорахунокфактуру[№ рахунка]=ДіапазонНомерівРахунків,ROW(Відомостіпрорахунокфактуру[])-ROW(Відомостіпрорахунокфактуру[#Headers])), ROW(4:4)), MATCH($F$8, Відомостіпрорахунокфактуру[#Headers], 0)),\"\")","v":0},{"v":280,"d":"280.00₴"}]
[null,{"$f":"IFERROR(INDEX(Відомостіпрорахунокфактуру[],SMALL(IF(Відомостіпрорахунокфактуру[№ рахунка]=ДіапазонНомерівРахунків,ROW(Відомостіпрорахунокфактуру[])-ROW(Відомостіпрорахунокфактуру[#Headers])), ROW(5:5)), MATCH($B$8, Відомостіпрорахунокфактуру[#Headers], 0)),\"\")","v":"Z4571"},{"$f":"IFERROR(INDEX(Відомостіпрорахунокфактуру[],SMALL(IF(Відомостіпрорахунокфактуру[№ рахунка]=ДіапазонНомерівРахунків,ROW(Відомостіпрорахунокфактуру[])-ROW(Відомостіпрорахунокфактуру[#Headers])), ROW(5:5)), MATCH($C$8, Відомостіпрорахунокфактуру[#Headers], 0)),\"\")","v":"Дані 5 рахунка-фактури 3-456-2"},{"$f":"IFERROR(INDEX(Відомостіпрорахунокфактуру[],SMALL(IF(Відомостіпрорахунокфактуру[№ рахунка]=ДіапазонНомерівРахунків,ROW(Відомостіпрорахунокфактуру[])-ROW(Відомостіпрорахунокфактуру[#Headers])), ROW(5:5)), MATCH($D$8, Відомостіпрорахунокфактуру[#Headers], 0)),\"\")","v":10},{"$f":"IFERROR(INDEX(Відомостіпрорахунокфактуру[],SMALL(IF(Відомостіпрорахунокфактуру[№ рахунка]=ДіапазонНомерівРахунків,ROW(Відомостіпрорахунокфактуру[])-ROW(Відомостіпрорахунокфактуру[#Headers])), ROW(5:5)), MATCH($E$8, Відомостіпрорахунокфактуру[#Headers], 0)),\"\")","v":{"v":4,"d":"4.00₴"}},{"$f":"IFERROR(INDEX(Відомостіпрорахунокфактуру[],SMALL(IF(Відомостіпрорахунокфактуру[№ рахунка]=ДіапазонНомерівРахунків,ROW(Відомостіпрорахунокфактуру[])-ROW(Відомостіпрорахунокфактуру[#Headers])), ROW(5:5)), MATCH($F$8, Відомостіпрорахунокфактуру[#Headers], 0)),\"\")","v":0},{"v":40,"d":"40.00₴"}]
[null,{"$f":"IFERROR(INDEX(Відомостіпрорахунокфактуру[],SMALL(IF(Відомостіпрорахунокфактуру[№ рахунка]=ДіапазонНомерівРахунків,ROW(Відомостіпрорахунокфактуру[])-ROW(Відомостіпрорахунокфактуру[#Headers])), ROW(6:6)), MATCH($B$8, Відомостіпрорахунокфактуру[#Headers], 0)),\"\")","v":"Z4572"},{"$f":"IFERROR(INDEX(Відомостіпрорахунокфактуру[],SMALL(IF(Відомостіпрорахунокфактуру[№ рахунка]=ДіапазонНомерівРахунків,ROW(Відомостіпрорахунокфактуру[])-ROW(Відомостіпрорахунокфактуру[#Headers])), ROW(6:6)), MATCH($C$8, Відомостіпрорахунокфактуру[#Headers], 0)),\"\")","v":"Дані 6 рахунка-фактури 3-456-2"},{"$f":"IFERROR(INDEX(Відомостіпрорахунокфактуру[],SMALL(IF(Відомостіпрорахунокфактуру[№ рахунка]=ДіапазонНомерівРахунків,ROW(Відомостіпрорахунокфактуру[])-ROW(Відомостіпрорахунокфактуру[#Headers])), ROW(6:6)), MATCH($D$8, Відомостіпрорахунокфактуру[#Headers], 0)),\"\")","v":5},{"$f":"IFERROR(INDEX(Відомостіпрорахунокфактуру[],SMALL(IF(Відомостіпрорахунокфактуру[№ рахунка]=ДіапазонНомерівРахунків,ROW(Відомостіпрорахунокфактуру[])-ROW(Відомостіпрорахунокфактуру[#Headers])), ROW(6:6)), MATCH($E$8, Відомостіпрорахунокфактуру[#Headers], 0)),\"\")","v":{"v":8,"d":"8.00₴"}},{"$f":"IFERROR(INDEX(Відомостіпрорахунокфактуру[],SMALL(IF(Відомостіпрорахунокфактуру[№ рахунка]=ДіапазонНомерівРахунків,ROW(Відомостіпрорахунокфактуру[])-ROW(Відомостіпрорахунокфактуру[#Headers])), ROW(6:6)), MATCH($F$8, Відомостіпрорахунокфактуру[#Headers], 0)),\"\")","v":0},{"v":40,"d":"40.00₴"}]
[null,{"$f":"IFERROR(INDEX(Відомостіпрорахунокфактуру[],SMALL(IF(Відомостіпрорахунокфактуру[№ рахунка]=ДіапазонНомерівРахунків,ROW(Відомостіпрорахунокфактуру[])-ROW(Відомостіпрорахунокфактуру[#Headers])), ROW(7:7)), MATCH($B$8, Відомостіпрорахунокфактуру[#Headers], 0)),\"\")","v":"Z4573"},{"$f":"IFERROR(INDEX(Відомостіпрорахунокфактуру[],SMALL(IF(Відомостіпрорахунокфактуру[№ рахунка]=ДіапазонНомерівРахунків,ROW(Відомостіпрорахунокфактуру[])-ROW(Відомостіпрорахунокфактуру[#Headers])), ROW(7:7)), MATCH($C$8, Відомостіпрорахунокфактуру[#Headers], 0)),\"\")","v":"Дані 7 рахунка-фактури 3-456-2"},{"$f":"IFERROR(INDEX(Відомостіпрорахунокфактуру[],SMALL(IF(Відомостіпрорахунокфактуру[№ рахунка]=ДіапазонНомерівРахунків,ROW(Відомостіпрорахунокфактуру[])-ROW(Відомостіпрорахунокфактуру[#Headers])), ROW(7:7)), MATCH($D$8, Відомостіпрорахунокфактуру[#Headers], 0)),\"\")","v":70},{"$f":"IFERROR(INDEX(Відомостіпрорахунокфактуру[],SMALL(IF(Відомостіпрорахунокфактуру[№ рахунка]=ДіапазонНомерівРахунків,ROW(Відомостіпрорахунокфактуру[])-ROW(Відомостіпрорахунокфактуру[#Headers])), ROW(7:7)), MATCH($E$8, Відомостіпрорахунокфактуру[#Headers], 0)),\"\")","v":{"v":6,"d":"6.00₴"}},{"$f":"IFERROR(INDEX(Відомостіпрорахунокфактуру[],SMALL(IF(Відомостіпрорахунокфактуру[№ рахунка]=ДіапазонНомерівРахунків,ROW(Відомостіпрорахунокфактуру[])-ROW(Відомостіпрорахунокфактуру[#Headers])), ROW(7:7)), MATCH($F$8, Відомостіпрорахунокфактуру[#Headers], 0)),\"\")","v":0},{"v":420,"d":"420.00₴"}]
[null,{"$f":"IFERROR(INDEX(Відомостіпрорахунокфактуру[],SMALL(IF(Відомостіпрорахунокфактуру[№ рахунка]=ДіапазонНомерівРахунків,ROW(Відомостіпрорахунокфактуру[])-ROW(Відомостіпрорахунокфактуру[#Headers])), ROW(8:8)), MATCH($B$8, Відомостіпрорахунокфактуру[#Headers], 0)),\"\")","v":"Z4574"},{"$f":"IFERROR(INDEX(Відомостіпрорахунокфактуру[],SMALL(IF(Відомостіпрорахунокфактуру[№ рахунка]=ДіапазонНомерівРахунків,ROW(Відомостіпрорахунокфактуру[])-ROW(Відомостіпрорахунокфактуру[#Headers])), ROW(8:8)), MATCH($C$8, Відомостіпрорахунокфактуру[#Headers], 0)),\"\")","v":"Дані 8 рахунка-фактури 3-456-2"},{"$f":"IFERROR(INDEX(Відомостіпрорахунокфактуру[],SMALL(IF(Відомостіпрорахунокфактуру[№ рахунка]=ДіапазонНомерівРахунків,ROW(Відомостіпрорахунокфактуру[])-ROW(Відомостіпрорахунокфактуру[#Headers])), ROW(8:8)), MATCH($D$8, Відомостіпрорахунокфактуру[#Headers], 0)),\"\")","v":25},{"$f":"IFERROR(INDEX(Відомостіпрорахунокфактуру[],SMALL(IF(Відомостіпрорахунокфактуру[№ рахунка]=ДіапазонНомерівРахунків,ROW(Відомостіпрорахунокфактуру[])-ROW(Відомостіпрорахунокфактуру[#Headers])), ROW(8:8)), MATCH($E$8, Відомостіпрорахунокфактуру[#Headers], 0)),\"\")","v":{"v":4,"d":"4.00₴"}},{"$f":"IFERROR(INDEX(Відомостіпрорахунокфактуру[],SMALL(IF(Відомостіпрорахунокфактуру[№ рахунка]=ДіапазонНомерівРахунків,ROW(Відомостіпрорахунокфактуру[])-ROW(Відомостіпрорахунокфактуру[#Headers])), ROW(8:8)), MATCH($F$8, Відомостіпрорахунокфактуру[#Headers], 0)),\"\")","v":0},{"v":100,"d":"100.00₴"}]
[null,{"$f":"IFERROR(INDEX(Відомостіпрорахунокфактуру[],SMALL(IF(Відомостіпрорахунокфактуру[№ рахунка]=ДіапазонНомерівРахунків,ROW(Відомостіпрорахунокфактуру[])-ROW(Відомостіпрорахунокфактуру[#Headers])), ROW(9:9)), MATCH($B$8, Відомостіпрорахунокфактуру[#Headers], 0)),\"\")","v":"Z4575"},{"$f":"IFERROR(INDEX(Відомостіпрорахунокфактуру[],SMALL(IF(Відомостіпрорахунокфактуру[№ рахунка]=ДіапазонНомерівРахунків,ROW(Відомостіпрорахунокфактуру[])-ROW(Відомостіпрорахунокфактуру[#Headers])), ROW(9:9)), MATCH($C$8, Відомостіпрорахунокфактуру[#Headers], 0)),\"\")","v":"Дані 9 рахунка-фактури 3-456-2"},{"$f":"IFERROR(INDEX(Відомостіпрорахунокфактуру[],SMALL(IF(Відомостіпрорахунокфактуру[№ рахунка]=ДіапазонНомерівРахунків,ROW(Відомостіпрорахунокфактуру[])-ROW(Відомостіпрорахунокфактуру[#Headers])), ROW(9:9)), MATCH($D$8, Відомостіпрорахунокфактуру[#Headers], 0)),\"\")","v":5},{"$f":"IFERROR(INDEX(Відомостіпрорахунокфактуру[],SMALL(IF(Відомостіпрорахунокфактуру[№ рахунка]=ДіапазонНомерівРахунків,ROW(Відомостіпрорахунокфактуру[])-ROW(Відомостіпрорахунокфактуру[#Headers])), ROW(9:9)), MATCH($E$8, Відомостіпрорахунокфактуру[#Headers], 0)),\"\")","v":{"v":7,"d":"7.00₴"}},{"$f":"IFERROR(INDEX(Відомостіпрорахунокфактуру[],SMALL(IF(Відомостіпрорахунокфактуру[№ рахунка]=ДіапазонНомерівРахунків,ROW(Відомостіпрорахунокфактуру[])-ROW(Відомостіпрорахунокфактуру[#Headers])), ROW(9:9)), MATCH($F$8, Відомостіпрорахунокфактуру[#Headers], 0)),\"\")","v":{"v":3,"d":"3.00₴"}},{"v":32,"d":"32.00₴"}]
[null,{"$f":"IFERROR(INDEX(Відомостіпрорахунокфактуру[],SMALL(IF(Відомостіпрорахунокфактуру[№ рахунка]=ДіапазонНомерівРахунків,ROW(Відомостіпрорахунокфактуру[])-ROW(Відомостіпрорахунокфактуру[#Headers])), ROW(10:10)), MATCH($B$8, Відомостіпрорахунокфактуру[#Headers], 0)),\"\")","v":"Z4576"},{"$f":"IFERROR(INDEX(Відомостіпрорахунокфактуру[],SMALL(IF(Відомостіпрорахунокфактуру[№ рахунка]=ДіапазонНомерівРахунків,ROW(Відомостіпрорахунокфактуру[])-ROW(Відомостіпрорахунокфактуру[#Headers])), ROW(10:10)), MATCH($C$8, Відомостіпрорахунокфактуру[#Headers], 0)),\"\")","v":"Дані 10 рахунка-фактури 3-456-2"},{"$f":"IFERROR(INDEX(Відомостіпрорахунокфактуру[],SMALL(IF(Відомостіпрорахунокфактуру[№ рахунка]=ДіапазонНомерівРахунків,ROW(Відомостіпрорахунокфактуру[])-ROW(Відомостіпрорахунокфактуру[#Headers])), ROW(10:10)), MATCH($D$8, Відомостіпрорахунокфактуру[#Headers], 0)),\"\")","v":80},{"$f":"IFERROR(INDEX(Відомостіпрорахунокфактуру[],SMALL(IF(Відомостіпрорахунокфактуру[№ рахунка]=ДіапазонНомерівРахунків,ROW(Відомостіпрорахунокфактуру[])-ROW(Відомостіпрорахунокфактуру[#Headers])), ROW(10:10)), MATCH($E$8, Відомостіпрорахунокфактуру[#Headers], 0)),\"\")","v":{"v":1,"d":"1.00₴"}},{"$f":"IFERROR(INDEX(Відомостіпрорахунокфактуру[],SMALL(IF(Відомостіпрорахунокфактуру[№ рахунка]=ДіапазонНомерівРахунків,ROW(Відомостіпрорахунокфактуру[])-ROW(Відомостіпрорахунокфактуру[#Headers])), ROW(10:10)), MATCH($F$8, Відомостіпрорахунокфактуру[#Headers], 0)),\"\")","v":0},{"v":80,"d":"80.00₴"}]
[null,{"$f":"IFERROR(INDEX(Відомостіпрорахунокфактуру[],SMALL(IF(Відомостіпрорахунокфактуру[№ рахунка]=ДіапазонНомерівРахунків,ROW(Відомостіпрорахунокфактуру[])-ROW(Відомостіпрорахунокфактуру[#Headers])), ROW(11:11)), MATCH($B$8, Відомостіпрорахунокфактуру[#Headers], 0)),\"\")","v":"Z4577"},{"$f":"IFERROR(INDEX(Відомостіпрорахунокфактуру[],SMALL(IF(Відомостіпрорахунокфактуру[№ рахунка]=ДіапазонНомерівРахунків,ROW(Відомостіпрорахунокфактуру[])-ROW(Відомостіпрорахунокфактуру[#Headers])), ROW(11:11)), MATCH($C$8, Відомостіпрорахунокфактуру[#Headers], 0)),\"\")","v":"Дані 11 рахунка-фактури 3-456-2"},{"$f":"IFERROR(INDEX(Відомостіпрорахунокфактуру[],SMALL(IF(Відомостіпрорахунокфактуру[№ рахунка]=ДіапазонНомерівРахунків,ROW(Відомостіпрорахунокфактуру[])-ROW(Відомостіпрорахунокфактуру[#Headers])), ROW(11:11)), MATCH($D$8, Відомостіпрорахунокфактуру[#Headers], 0)),\"\")","v":65},{"$f":"IFERROR(INDEX(Відомостіпрорахунокфактуру[],SMALL(IF(Відомостіпрорахунокфактуру[№ рахунка]=ДіапазонНомерівРахунків,ROW(Відомостіпрорахунокфактуру[])-ROW(Відомостіпрорахунокфактуру[#Headers])), ROW(11:11)), MATCH($E$8, Відомостіпрорахунокфактуру[#Headers], 0)),\"\")","v":{"v":7,"d":"7.00₴"}},{"$f":"IFERROR(INDEX(Відомостіпрорахунокфактуру[],SMALL(IF(Відомостіпрорахунокфактуру[№ рахунка]=ДіапазонНомерівРахунків,ROW(Відомостіпрорахунокфактуру[])-ROW(Відомостіпрорахунокфактуру[#Headers])), ROW(11:11)), MATCH($F$8, Відомостіпрорахунокфактуру[#Headers], 0)),\"\")","v":0},{"v":455,"d":"455.00₴"}]
[null,{"$f":"IFERROR(INDEX(Відомостіпрорахунокфактуру[],SMALL(IF(Відомостіпрорахунокфактуру[№ рахунка]=ДіапазонНомерівРахунків,ROW(Відомостіпрорахунокфактуру[])-ROW(Відомостіпрорахунокфактуру[#Headers])), ROW(12:12)), MATCH($B$8, Відомостіпрорахунокфактуру[#Headers], 0)),\"\")","v":"Z4578"},{"$f":"IFERROR(INDEX(Відомостіпрорахунокфактуру[],SMALL(IF(Відомостіпрорахунокфактуру[№ рахунка]=ДіапазонНомерівРахунків,ROW(Відомостіпрорахунокфактуру[])-ROW(Відомостіпрорахунокфактуру[#Headers])), ROW(12:12)), MATCH($C$8, Відомостіпрорахунокфактуру[#Headers], 0)),\"\")","v":"Дані 12 рахунка-фактури 3-456-2"},{"$f":"IFERROR(INDEX(Відомостіпрорахунокфактуру[],SMALL(IF(Відомостіпрорахунокфактуру[№ рахунка]=ДіапазонНомерівРахунків,ROW(Відомостіпрорахунокфактуру[])-ROW(Відомостіпрорахунокфактуру[#Headers])), ROW(12:12)), MATCH($D$8, Відомостіпрорахунокфактуру[#Headers], 0)),\"\")","v":44},{"$f":"IFERROR(INDEX(Відомостіпрорахунокфактуру[],SMALL(IF(Відомостіпрорахунокфактуру[№ рахунка]=ДіапазонНомерівРахунків,ROW(Відомостіпрорахунокфактуру[])-ROW(Відомостіпрорахунокфактуру[#Headers])), ROW(12:12)), MATCH($E$8, Відомостіпрорахунокфактуру[#Headers], 0)),\"\")","v":{"v":1,"d":"1.00₴"}},{"$f":"IFERROR(INDEX(Відомостіпрорахунокфактуру[],SMALL(IF(Відомостіпрорахунокфактуру[№ рахунка]=ДіапазонНомерівРахунків,ROW(Відомостіпрорахунокфактуру[])-ROW(Відомостіпрорахунокфактуру[#Headers])), ROW(12:12)), MATCH($F$8, Відомостіпрорахунокфактуру[#Headers], 0)),\"\")","v":0},{"v":44,"d":"44.00₴"}]
[null,{"$f":"IFERROR(INDEX(Відомостіпрорахунокфактуру[],SMALL(IF(Відомостіпрорахунокфактуру[№ рахунка]=ДіапазонНомерівРахунків,ROW(Відомостіпрорахунокфактуру[])-ROW(Відомостіпрорахунокфактуру[#Headers])), ROW(13:13)), MATCH($B$8, Відомостіпрорахунокфактуру[#Headers], 0)),\"\")","v":""},{"$f":"IFERROR(INDEX(Відомостіпрорахунокфактуру[],SMALL(IF(Відомостіпрорахунокфактуру[№ рахунка]=ДіапазонНомерівРахунків,ROW(Відомостіпрорахунокфактуру[])-ROW(Відомостіпрорахунокфактуру[#Headers])), ROW(13:13)), MATCH($C$8, Відомостіпрорахунокфактуру[#Headers], 0)),\"\")","v":""},{"$f":"IFERROR(INDEX(Відомостіпрорахунокфактуру[],SMALL(IF(Відомостіпрорахунокфактуру[№ рахунка]=ДіапазонНомерівРахунків,ROW(Відомостіпрорахунокфактуру[])-ROW(Відомостіпрорахунокфактуру[#Headers])), ROW(13:13)), MATCH($D$8, Відомостіпрорахунокфактуру[#Headers], 0)),\"\")","v":""},{"$f":"IFERROR(INDEX(Відомостіпрорахунокфактуру[],SMALL(IF(Відомостіпрорахунокфактуру[№ рахунка]=ДіапазонНомерівРахунків,ROW(Відомостіпрорахунокфактуру[])-ROW(Відомостіпрорахунокфактуру[#Headers])), ROW(13:13)), MATCH($E$8, Відомостіпрорахунокфактуру[#Headers], 0)),\"\")","v":""},{"$f":"IFERROR(INDEX(Відомостіпрорахунокфактуру[],SMALL(IF(Відомостіпрорахунокфактуру[№ рахунка]=ДіапазонНомерівРахунків,ROW(Відомостіпрорахунокфактуру[])-ROW(Відомостіпрорахунокфактуру[#Headers])), ROW(13:13)), MATCH($F$8, Відомостіпрорахунокфактуру[#Headers], 0)),\"\")","v":""},""]
[null,{"$f":"IFERROR(INDEX(Відомостіпрорахунокфактуру[],SMALL(IF(Відомостіпрорахунокфактуру[№ рахунка]=ДіапазонНомерівРахунків,ROW(Відомостіпрорахунокфактуру[])-ROW(Відомостіпрорахунокфактуру[#Headers])), ROW(14:14)), MATCH($B$8, Відомостіпрорахунокфактуру[#Headers], 0)),\"\")","v":""},{"$f":"IFERROR(INDEX(Відомостіпрорахунокфактуру[],SMALL(IF(Відомостіпрорахунокфактуру[№ рахунка]=ДіапазонНомерівРахунків,ROW(Відомостіпрорахунокфактуру[])-ROW(Відомостіпрорахунокфактуру[#Headers])), ROW(14:14)), MATCH($C$8, Відомостіпрорахунокфактуру[#Headers], 0)),\"\")","v":""},{"$f":"IFERROR(INDEX(Відомостіпрорахунокфактуру[],SMALL(IF(Відомостіпрорахунокфактуру[№ рахунка]=ДіапазонНомерівРахунків,ROW(Відомостіпрорахунокфактуру[])-ROW(Відомостіпрорахунокфактуру[#Headers])), ROW(14:14)), MATCH($D$8, Відомостіпрорахунокфактуру[#Headers], 0)),\"\")","v":""},{"$f":"IFERROR(INDEX(Відомостіпрорахунокфактуру[],SMALL(IF(Відомостіпрорахунокфактуру[№ рахунка]=ДіапазонНомерівРахунків,ROW(Відомостіпрорахунокфактуру[])-ROW(Відомостіпрорахунокфактуру[#Headers])), ROW(14:14)), MATCH($E$8, Відомостіпрорахунокфактуру[#Headers], 0)),\"\")","v":""},{"$f":"IFERROR(INDEX(Відомостіпрорахунокфактуру[],SMALL(IF(Відомостіпрорахунокфактуру[№ рахунка]=ДіапазонНомерівРахунків,ROW(Відомостіпрорахунокфактуру[])-ROW(Відомостіпрорахунокфактуру[#Headers])), ROW(14:14)), MATCH($F$8, Відомостіпрорахунокфактуру[#Headers], 0)),\"\")","v":""},""]
[null,{"$f":"IFERROR(INDEX(Відомостіпрорахунокфактуру[],SMALL(IF(Відомостіпрорахунокфактуру[№ рахунка]=ДіапазонНомерівРахунків,ROW(Відомостіпрорахунокфактуру[])-ROW(Відомостіпрорахунокфактуру[#Headers])), ROW(15:15)), MATCH($B$8, Відомостіпрорахунокфактуру[#Headers], 0)),\"\")","v":""},{"$f":"IFERROR(INDEX(Відомостіпрорахунокфактуру[],SMALL(IF(Відомостіпрорахунокфактуру[№ рахунка]=ДіапазонНомерівРахунків,ROW(Відомостіпрорахунокфактуру[])-ROW(Відомостіпрорахунокфактуру[#Headers])), ROW(15:15)), MATCH($C$8, Відомостіпрорахунокфактуру[#Headers], 0)),\"\")","v":""},{"$f":"IFERROR(INDEX(Відомостіпрорахунокфактуру[],SMALL(IF(Відомостіпрорахунокфактуру[№ рахунка]=ДіапазонНомерівРахунків,ROW(Відомостіпрорахунокфактуру[])-ROW(Відомостіпрорахунокфактуру[#Headers])), ROW(15:15)), MATCH($D$8, Відомостіпрорахунокфактуру[#Headers], 0)),\"\")","v":""},{"$f":"IFERROR(INDEX(Відомостіпрорахунокфактуру[],SMALL(IF(Відомостіпрорахунокфактуру[№ рахунка]=ДіапазонНомерівРахунків,ROW(Відомостіпрорахунокфактуру[])-ROW(Відомостіпрорахунокфактуру[#Headers])), ROW(15:15)), MATCH($E$8, Відомостіпрорахунокфактуру[#Headers], 0)),\"\")","v":""},{"$f":"IFERROR(INDEX(Відомостіпрорахунокфактуру[],SMALL(IF(Відомостіпрорахунокфактуру[№ рахунка]=ДіапазонНомерівРахунків,ROW(Відомостіпрорахунокфактуру[])-ROW(Відомостіпрорахунокфактуру[#Headers])), ROW(15:15)), MATCH($F$8, Відомостіпрорахунокфактуру[#Headers], 0)),\"\")","v":""},""]
[null,{"$f":"IFERROR(INDEX(Відомостіпрорахунокфактуру[],SMALL(IF(Відомостіпрорахунокфактуру[№ рахунка]=ДіапазонНомерівРахунків,ROW(Відомостіпрорахунокфактуру[])-ROW(Відомостіпрорахунокфактуру[#Headers])), ROW(16:16)), MATCH($B$8, Відомостіпрорахунокфактуру[#Headers], 0)),\"\")","v":""},{"$f":"IFERROR(INDEX(Відомостіпрорахунокфактуру[],SMALL(IF(Відомостіпрорахунокфактуру[№ рахунка]=ДіапазонНомерівРахунків,ROW(Відомостіпрорахунокфактуру[])-ROW(Відомостіпрорахунокфактуру[#Headers])), ROW(16:16)), MATCH($C$8, Відомостіпрорахунокфактуру[#Headers], 0)),\"\")","v":""},{"$f":"IFERROR(INDEX(Відомостіпрорахунокфактуру[],SMALL(IF(Відомостіпрорахунокфактуру[№ рахунка]=ДіапазонНомерівРахунків,ROW(Відомостіпрорахунокфактуру[])-ROW(Відомостіпрорахунокфактуру[#Headers])), ROW(16:16)), MATCH($D$8, Відомостіпрорахунокфактуру[#Headers], 0)),\"\")","v":""},{"$f":"IFERROR(INDEX(Відомостіпрорахунокфактуру[],SMALL(IF(Відомостіпрорахунокфактуру[№ рахунка]=ДіапазонНомерівРахунків,ROW(Відомостіпрорахунокфактуру[])-ROW(Відомостіпрорахунокфактуру[#Headers])), ROW(16:16)), MATCH($E$8, Відомостіпрорахунокфактуру[#Headers], 0)),\"\")","v":""},{"$f":"IFERROR(INDEX(Відомостіпрорахунокфактуру[],SMALL(IF(Відомостіпрорахунокфактуру[№ рахунка]=ДіапазонНомерівРахунків,ROW(Відомостіпрорахунокфактуру[])-ROW(Відомостіпрорахунокфактуру[#Headers])), ROW(16:16)), MATCH($F$8, Відомостіпрорахунокфактуру[#Headers], 0)),\"\")","v":""},""]
[null,{"$f":"IFERROR(INDEX(Відомостіпрорахунокфактуру[],SMALL(IF(Відомостіпрорахунокфактуру[№ рахунка]=ДіапазонНомерівРахунків,ROW(Відомостіпрорахунокфактуру[])-ROW(Відомостіпрорахунокфактуру[#Headers])), ROW(17:17)), MATCH($B$8, Відомостіпрорахунокфактуру[#Headers], 0)),\"\")","v":""},{"$f":"IFERROR(INDEX(Відомостіпрорахунокфактуру[],SMALL(IF(Відомостіпрорахунокфактуру[№ рахунка]=ДіапазонНомерівРахунків,ROW(Відомостіпрорахунокфактуру[])-ROW(Відомостіпрорахунокфактуру[#Headers])), ROW(17:17)), MATCH($C$8, Відомостіпрорахунокфактуру[#Headers], 0)),\"\")","v":""},{"$f":"IFERROR(INDEX(Відомостіпрорахунокфактуру[],SMALL(IF(Відомостіпрорахунокфактуру[№ рахунка]=ДіапазонНомерівРахунків,ROW(Відомостіпрорахунокфактуру[])-ROW(Відомостіпрорахунокфактуру[#Headers])), ROW(17:17)), MATCH($D$8, Відомостіпрорахунокфактуру[#Headers], 0)),\"\")","v":""},{"$f":"IFERROR(INDEX(Відомостіпрорахунокфактуру[],SMALL(IF(Відомостіпрорахунокфактуру[№ рахунка]=ДіапазонНомерівРахунків,ROW(Відомостіпрорахунокфактуру[])-ROW(Відомостіпрорахунокфактуру[#Headers])), ROW(17:17)), MATCH($E$8, Відомостіпрорахунокфактуру[#Headers], 0)),\"\")","v":""},{"$f":"IFERROR(INDEX(Відомостіпрорахунокфактуру[],SMALL(IF(Відомостіпрорахунокфактуру[№ рахунка]=ДіапазонНомерівРахунків,ROW(Відомостіпрорахунокфактуру[])-ROW(Відомостіпрорахунокфактуру[#Headers])), ROW(17:17)), MATCH($F$8, Відомостіпрорахунокфактуру[#Headers], 0)),\"\")","v":""},""]
[null,{"$f":"IFERROR(INDEX(Відомостіпрорахунокфактуру[],SMALL(IF(Відомостіпрорахунокфактуру[№ рахунка]=ДіапазонНомерівРахунків,ROW(Відомостіпрорахунокфактуру[])-ROW(Відомостіпрорахунокфактуру[#Headers])), ROW(18:18)), MATCH($B$8, Відомостіпрорахунокфактуру[#Headers], 0)),\"\")","v":""},{"$f":"IFERROR(INDEX(Відомостіпрорахунокфактуру[],SMALL(IF(Відомостіпрорахунокфактуру[№ рахунка]=ДіапазонНомерівРахунків,ROW(Відомостіпрорахунокфактуру[])-ROW(Відомостіпрорахунокфактуру[#Headers])), ROW(18:18)), MATCH($C$8, Відомостіпрорахунокфактуру[#Headers], 0)),\"\")","v":""},{"$f":"IFERROR(INDEX(Відомостіпрорахунокфактуру[],SMALL(IF(Відомостіпрорахунокфактуру[№ рахунка]=ДіапазонНомерівРахунків,ROW(Відомостіпрорахунокфактуру[])-ROW(Відомостіпрорахунокфактуру[#Headers])), ROW(18:18)), MATCH($D$8, Відомостіпрорахунокфактуру[#Headers], 0)),\"\")","v":""},{"$f":"IFERROR(INDEX(Відомостіпрорахунокфактуру[],SMALL(IF(Відомостіпрорахунокфактуру[№ рахунка]=ДіапазонНомерівРахунків,ROW(Відомостіпрорахунокфактуру[])-ROW(Відомостіпрорахунокфактуру[#Headers])), ROW(18:18)), MATCH($E$8, Відомостіпрорахунокфактуру[#Headers], 0)),\"\")","v":""},{"$f":"IFERROR(INDEX(Відомостіпрорахунокфактуру[],SMALL(IF(Відомостіпрорахунокфактуру[№ рахунка]=ДіапазонНомерівРахунків,ROW(Відомостіпрорахунокфактуру[])-ROW(Відомостіпрорахунокфактуру[#Headers])), ROW(18:18)), MATCH($F$8, Відомостіпрорахунокфактуру[#Headers], 0)),\"\")","v":""},""]
[null,{"$f":"IFERROR(INDEX(Відомостіпрорахунокфактуру[],SMALL(IF(Відомостіпрорахунокфактуру[№ рахунка]=ДіапазонНомерівРахунків,ROW(Відомостіпрорахунокфактуру[])-ROW(Відомостіпрорахунокфактуру[#Headers])), ROW(19:19)), MATCH($B$8, Відомостіпрорахунокфактуру[#Headers], 0)),\"\")","v":""},{"$f":"IFERROR(INDEX(Відомостіпрорахунокфактуру[],SMALL(IF(Відомостіпрорахунокфактуру[№ рахунка]=ДіапазонНомерівРахунків,ROW(Відомостіпрорахунокфактуру[])-ROW(Відомостіпрорахунокфактуру[#Headers])), ROW(19:19)), MATCH($C$8, Відомостіпрорахунокфактуру[#Headers], 0)),\"\")","v":""},{"$f":"IFERROR(INDEX(Відомостіпрорахунокфактуру[],SMALL(IF(Відомостіпрорахунокфактуру[№ рахунка]=ДіапазонНомерівРахунків,ROW(Відомостіпрорахунокфактуру[])-ROW(Відомостіпрорахунокфактуру[#Headers])), ROW(19:19)), MATCH($D$8, Відомостіпрорахунокфактуру[#Headers], 0)),\"\")","v":""},{"$f":"IFERROR(INDEX(Відомостіпрорахунокфактуру[],SMALL(IF(Відомостіпрорахунокфактуру[№ рахунка]=ДіапазонНомерівРахунків,ROW(Відомостіпрорахунокфактуру[])-ROW(Відомостіпрорахунокфактуру[#Headers])), ROW(19:19)), MATCH($E$8, Відомостіпрорахунокфактуру[#Headers], 0)),\"\")","v":""},{"$f":"IFERROR(INDEX(Відомостіпрорахунокфактуру[],SMALL(IF(Відомостіпрорахунокфактуру[№ рахунка]=ДіапазонНомерівРахунків,ROW(Відомостіпрорахунокфактуру[])-ROW(Відомостіпрорахунокфактуру[#Headers])), ROW(19:19)), MATCH($F$8, Відомостіпрорахунокфактуру[#Headers], 0)),\"\")","v":""},""]
[null,{"$f":"IFERROR(INDEX(Відомостіпрорахунокфактуру[],SMALL(IF(Відомостіпрорахунокфактуру[№ рахунка]=ДіапазонНомерівРахунків,ROW(Відомостіпрорахунокфактуру[])-ROW(Відомостіпрорахунокфактуру[#Headers])), ROW(20:20)), MATCH($B$8, Відомостіпрорахунокфактуру[#Headers], 0)),\"\")","v":""},{"$f":"IFERROR(INDEX(Відомостіпрорахунокфактуру[],SMALL(IF(Відомостіпрорахунокфактуру[№ рахунка]=ДіапазонНомерівРахунків,ROW(Відомостіпрорахунокфактуру[])-ROW(Відомостіпрорахунокфактуру[#Headers])), ROW(20:20)), MATCH($C$8, Відомостіпрорахунокфактуру[#Headers], 0)),\"\")","v":""},{"$f":"IFERROR(INDEX(Відомостіпрорахунокфактуру[],SMALL(IF(Відомостіпрорахунокфактуру[№ рахунка]=ДіапазонНомерівРахунків,ROW(Відомостіпрорахунокфактуру[])-ROW(Відомостіпрорахунокфактуру[#Headers])), ROW(20:20)), MATCH($D$8, Відомостіпрорахунокфактуру[#Headers], 0)),\"\")","v":""},{"$f":"IFERROR(INDEX(Відомостіпрорахунокфактуру[],SMALL(IF(Відомостіпрорахунокфактуру[№ рахунка]=ДіапазонНомерівРахунків,ROW(Відомостіпрорахунокфактуру[])-ROW(Відомостіпрорахунокфактуру[#Headers])), ROW(20:20)), MATCH($E$8, Відомостіпрорахунокфактуру[#Headers], 0)),\"\")","v":""},{"$f":"IFERROR(INDEX(Відомостіпрорахунокфактуру[],SMALL(IF(Відомостіпрорахунокфактуру[№ рахунка]=ДіапазонНомерівРахунків,ROW(Відомостіпрорахунокфактуру[])-ROW(Відомостіпрорахунокфактуру[#Headers])), ROW(20:20)), MATCH($F$8, Відомостіпрорахунокфактуру[#Headers], 0)),\"\")","v":""},""]
[null,{"$f":"IFERROR(INDEX(Відомостіпрорахунокфактуру[],SMALL(IF(Відомостіпрорахунокфактуру[№ рахунка]=ДіапазонНомерівРахунків,ROW(Відомостіпрорахунокфактуру[])-ROW(Відомостіпрорахунокфактуру[#Headers])), ROW(21:21)), MATCH($B$8, Відомостіпрорахунокфактуру[#Headers], 0)),\"\")","v":""},{"$f":"IFERROR(INDEX(Відомостіпрорахунокфактуру[],SMALL(IF(Відомостіпрорахунокфактуру[№ рахунка]=ДіапазонНомерівРахунків,ROW(Відомостіпрорахунокфактуру[])-ROW(Відомостіпрорахунокфактуру[#Headers])), ROW(21:21)), MATCH($C$8, Відомостіпрорахунокфактуру[#Headers], 0)),\"\")","v":""},{"$f":"IFERROR(INDEX(Відомостіпрорахунокфактуру[],SMALL(IF(Відомостіпрорахунокфактуру[№ рахунка]=ДіапазонНомерівРахунків,ROW(Відомостіпрорахунокфактуру[])-ROW(Відомостіпрорахунокфактуру[#Headers])), ROW(21:21)), MATCH($D$8, Відомостіпрорахунокфактуру[#Headers], 0)),\"\")","v":""},{"$f":"IFERROR(INDEX(Відомостіпрорахунокфактуру[],SMALL(IF(Відомостіпрорахунокфактуру[№ рахунка]=ДіапазонНомерівРахунків,ROW(Відомостіпрорахунокфактуру[])-ROW(Відомостіпрорахунокфактуру[#Headers])), ROW(21:21)), MATCH($E$8, Відомостіпрорахунокфактуру[#Headers], 0)),\"\")","v":""},{"$f":"IFERROR(INDEX(Відомостіпрорахунокфактуру[],SMALL(IF(Відомостіпрорахунокфактуру[№ рахунка]=ДіапазонНомерівРахунків,ROW(Відомостіпрорахунокфактуру[])-ROW(Відомостіпрорахунокфактуру[#Headers])), ROW(21:21)), MATCH($F$8, Відомостіпрорахунокфактуру[#Headers], 0)),\"\")","v":""},""]
[null,{"$f":"IFERROR(INDEX(Відомостіпрорахунокфактуру[],SMALL(IF(Відомостіпрорахунокфактуру[№ рахунка]=ДіапазонНомерівРахунків,ROW(Відомостіпрорахунокфактуру[])-ROW(Відомостіпрорахунокфактуру[#Headers])), ROW(22:22)), MATCH($B$8, Відомостіпрорахунокфактуру[#Headers], 0)),\"\")","v":""},{"$f":"IFERROR(INDEX(Відомостіпрорахунокфактуру[],SMALL(IF(Відомостіпрорахунокфактуру[№ рахунка]=ДіапазонНомерівРахунків,ROW(Відомостіпрорахунокфактуру[])-ROW(Відомостіпрорахунокфактуру[#Headers])), ROW(22:22)), MATCH($C$8, Відомостіпрорахунокфактуру[#Headers], 0)),\"\")","v":""},{"$f":"IFERROR(INDEX(Відомостіпрорахунокфактуру[],SMALL(IF(Відомостіпрорахунокфактуру[№ рахунка]=ДіапазонНомерівРахунків,ROW(Відомостіпрорахунокфактуру[])-ROW(Відомостіпрорахунокфактуру[#Headers])), ROW(22:22)), MATCH($D$8, Відомостіпрорахунокфактуру[#Headers], 0)),\"\")","v":""},{"$f":"IFERROR(INDEX(Відомостіпрорахунокфактуру[],SMALL(IF(Відомостіпрорахунокфактуру[№ рахунка]=ДіапазонНомерівРахунків,ROW(Відомостіпрорахунокфактуру[])-ROW(Відомостіпрорахунокфактуру[#Headers])), ROW(22:22)), MATCH($E$8, Відомостіпрорахунокфактуру[#Headers], 0)),\"\")","v":""},{"$f":"IFERROR(INDEX(Відомостіпрорахунокфактуру[],SMALL(IF(Відомостіпрорахунокфактуру[№ рахунка]=ДіапазонНомерівРахунків,ROW(Відомостіпрорахунокфактуру[])-ROW(Відомостіпрорахунокфактуру[#Headers])), ROW(22:22)), MATCH($F$8, Відомостіпрорахунокфактуру[#Headers], 0)),\"\")","v":""},""]
[null,{"$f":"IFERROR(INDEX(Відомостіпрорахунокфактуру[],SMALL(IF(Відомостіпрорахунокфактуру[№ рахунка]=ДіапазонНомерівРахунків,ROW(Відомостіпрорахунокфактуру[])-ROW(Відомостіпрорахунокфактуру[#Headers])), ROW(23:23)), MATCH($B$8, Відомостіпрорахунокфактуру[#Headers], 0)),\"\")","v":""},{"$f":"IFERROR(INDEX(Відомостіпрорахунокфактуру[],SMALL(IF(Відомостіпрорахунокфактуру[№ рахунка]=ДіапазонНомерівРахунків,ROW(Відомостіпрорахунокфактуру[])-ROW(Відомостіпрорахунокфактуру[#Headers])), ROW(23:23)), MATCH($C$8, Відомостіпрорахунокфактуру[#Headers], 0)),\"\")","v":""},{"$f":"IFERROR(INDEX(Відомостіпрорахунокфактуру[],SMALL(IF(Відомостіпрорахунокфактуру[№ рахунка]=ДіапазонНомерівРахунків,ROW(Відомостіпрорахунокфактуру[])-ROW(Відомостіпрорахунокфактуру[#Headers])), ROW(23:23)), MATCH($D$8, Відомостіпрорахунокфактуру[#Headers], 0)),\"\")","v":""},{"$f":"IFERROR(INDEX(Відомостіпрорахунокфактуру[],SMALL(IF(Відомостіпрорахунокфактуру[№ рахунка]=ДіапазонНомерівРахунків,ROW(Відомостіпрорахунокфактуру[])-ROW(Відомостіпрорахунокфактуру[#Headers])), ROW(23:23)), MATCH($E$8, Відомостіпрорахунокфактуру[#Headers], 0)),\"\")","v":""},{"$f":"IFERROR(INDEX(Відомостіпрорахунокфактуру[],SMALL(IF(Відомостіпрорахунокфактуру[№ рахунка]=ДіапазонНомерівРахунків,ROW(Відомостіпрорахунокфактуру[])-ROW(Відомостіпрорахунокфактуру[#Headers])), ROW(23:23)), MATCH($F$8, Відомостіпрорахунокфактуру[#Headers], 0)),\"\")","v":""},""]
[null,{"$f":"IFERROR(INDEX(Відомостіпрорахунокфактуру[],SMALL(IF(Відомостіпрорахунокфактуру[№ рахунка]=ДіапазонНомерівРахунків,ROW(Відомостіпрорахунокфактуру[])-ROW(Відомостіпрорахунокфактуру[#Headers])), ROW(24:24)), MATCH($B$8, Відомостіпрорахунокфактуру[#Headers], 0)),\"\")","v":""},{"$f":"IFERROR(INDEX(Відомостіпрорахунокфактуру[],SMALL(IF(Відомостіпрорахунокфактуру[№ рахунка]=ДіапазонНомерівРахунків,ROW(Відомостіпрорахунокфактуру[])-ROW(Відомостіпрорахунокфактуру[#Headers])), ROW(24:24)), MATCH($C$8, Відомостіпрорахунокфактуру[#Headers], 0)),\"\")","v":""},{"$f":"IFERROR(INDEX(Відомостіпрорахунокфактуру[],SMALL(IF(Відомостіпрорахунокфактуру[№ рахунка]=ДіапазонНомерівРахунків,ROW(Відомостіпрорахунокфактуру[])-ROW(Відомостіпрорахунокфактуру[#Headers])), ROW(24:24)), MATCH($D$8, Відомостіпрорахунокфактуру[#Headers], 0)),\"\")","v":""},{"$f":"IFERROR(INDEX(Відомостіпрорахунокфактуру[],SMALL(IF(Відомостіпрорахунокфактуру[№ рахунка]=ДіапазонНомерівРахунків,ROW(Відомостіпрорахунокфактуру[])-ROW(Відомостіпрорахунокфактуру[#Headers])), ROW(24:24)), MATCH($E$8, Відомостіпрорахунокфактуру[#Headers], 0)),\"\")","v":""},{"$f":"IFERROR(INDEX(Відомостіпрорахунокфактуру[],SMALL(IF(Відомостіпрорахунокфактуру[№ рахунка]=ДіапазонНомерівРахунків,ROW(Відомостіпрорахунокфактуру[])-ROW(Відомостіпрорахунокфактуру[#Headers])), ROW(24:24)), MATCH($F$8, Відомостіпрорахунокфактуру[#Headers], 0)),\"\")","v":""},""]
[null,{"$f":"IFERROR(INDEX(Відомостіпрорахунокфактуру[],SMALL(IF(Відомостіпрорахунокфактуру[№ рахунка]=ДіапазонНомерівРахунків,ROW(Відомостіпрорахунокфактуру[])-ROW(Відомостіпрорахунокфактуру[#Headers])), ROW(25:25)), MATCH($B$8, Відомостіпрорахунокфактуру[#Headers], 0)),\"\")","v":""},{"$f":"IFERROR(INDEX(Відомостіпрорахунокфактуру[],SMALL(IF(Відомостіпрорахунокфактуру[№ рахунка]=ДіапазонНомерівРахунків,ROW(Відомостіпрорахунокфактуру[])-ROW(Відомостіпрорахунокфактуру[#Headers])), ROW(25:25)), MATCH($C$8, Відомостіпрорахунокфактуру[#Headers], 0)),\"\")","v":""},{"$f":"IFERROR(INDEX(Відомостіпрорахунокфактуру[],SMALL(IF(Відомостіпрорахунокфактуру[№ рахунка]=ДіапазонНомерівРахунків,ROW(Відомостіпрорахунокфактуру[])-ROW(Відомостіпрорахунокфактуру[#Headers])), ROW(25:25)), MATCH($D$8, Відомостіпрорахунокфактуру[#Headers], 0)),\"\")","v":""},{"$f":"IFERROR(INDEX(Відомостіпрорахунокфактуру[],SMALL(IF(Відомостіпрорахунокфактуру[№ рахунка]=ДіапазонНомерівРахунків,ROW(Відомостіпрорахунокфактуру[])-ROW(Відомостіпрорахунокфактуру[#Headers])), ROW(25:25)), MATCH($E$8, Відомостіпрорахунокфактуру[#Headers], 0)),\"\")","v":""},{"$f":"IFERROR(INDEX(Відомостіпрорахунокфактуру[],SMALL(IF(Відомостіпрорахунокфактуру[№ рахунка]=ДіапазонНомерівРахунків,ROW(Відомостіпрорахунокфактуру[])-ROW(Відомостіпрорахунокфактуру[#Headers])), ROW(25:25)), MATCH($F$8, Відомостіпрорахунокфактуру[#Headers], 0)),\"\")","v":""},""]
[{"$nulls":5},"Проміжний підсумок рахунка",{"$f":"SUM(РахунокУПроекті[Ціна])","v":{"v":2014,"d":"2,014.00₴"}}]
[{"$nulls":5},"Податкова ставка",{"$f":"VLOOKUP(ДіапазонНомерівРахунків,Рахунки_фактуриОсновний[],5)","v":{"v":0.0875,"d":"8.75%"}}]
[{"$nulls":5},"Податок із продажу",{"$f":"G34*G35","v":{"v":176.225,"d":"176.23₴"}}]
[{"$nulls":5},"Інше",{"$f":"VLOOKUP(ДіапазонНомерівРахунків,Рахунки_фактуриОсновний[],6)","v":0}]
[null,{"$f":"\"Одержувач платежів: \"&НазваКомпанії&\".\"","v":"Одержувач платежів: Назва компанії."},{"$nulls":3},"Отриманий задаток",{"$f":"VLOOKUP(ДіапазонНомерівРахунків,Рахунки_фактуриОсновний[],7)","v":0}]
[null,"Загальна сума підлягає сплаті протягом <#> дн. На суму простроченої заборгованості нараховується штраф у розмірі <#> % на місяць.",{"$nulls":3},"ПІДСУМОК",{"$f":"(G34+G36+G37)-G38","v":{"v":2190.225,"d":"2,190.23₴"}}]

{"sheet":"Клієнти","index":1,"n_rows":6,"n_cols":12,"rows_kept":6}
[]
[null,null,"Клієнти"]
[null,"Підстановка","№ компанії","Назва компанії","Ім’я контактної особи","Адреса","Місто","Область","Поштовий індекс","Телефон","Електронна пошта","Факс"]
[null,{"$f":"C4& \" - \"&D4","v":"1 - ТОВ \"Товари та послуги\" "},1,"ТОВ \"Товари та послуги\" ","Роман Левчук","вул. Дальня, 123","Тернопіль","Тернопільська обл.","123456","(432) 555-01-78","perevirka@example.com","(432) 555-01-87"]
[null,"2 - Contoso, Ltd",2,"Contoso, Ltd","Сергій Паньків","вул. Кутова, 567","Миколаїв","Миколаївська обл.","098765","(432) 555-01-89","perevirka@example.com","(432) 555-01-23"]
[null,"Підсумки",{"$f":"\"Усього клієнтів: \"&SUBTOTAL(103,СписокКлієнтів[№ компанії])","v":"Усього клієнтів: 2"}]

{"sheet":"Рахунки-фактури – Основний","index":2,"n_rows":6,"n_cols":11,"rows_kept":6}
[]
[null,"Рахунки-фактури"]
[null,"№ рахунка","Компанія","Дата виставлення рахунка-фактури","Опис проекту","Податкова ставка","Інше","Задаток","Всього без ПДВ","Всього до сплати","Примітки"]
[null,"3-456-1","1 - ТОВ \"Товари та послуги\" ",{"$f":"TODAY()","v":{"v":43676,"d":"4367600.00%"}},"Проект 1",{"v":0.0875,"d":"8.75%"},{"v":100,"d":"100.00₴"},{"v":100,"d":"100.00₴"},{"$f":"SUMIF(Відомостіпрорахунокфактуру[№ рахунка],\"=\"&Рахунки_фактуриОсновний[[#This Row],[№ рахунка]],Відомостіпрорахунокфактуру[Підсумок])","v":{"v":5200,"d":"5,200.00₴"}},{"$f":"(Рахунки_фактуриОсновний[[#This Row],[Всього без ПДВ]]*(1+Рахунки_фактуриОсновний[[#This Row],[Податкова ставка]]))+Рахунки_фактуриОсновний[[#This Row],[Інше]]-Рахунки_фактуриОсновний[[#This Row],[Задаток]]","v":{"v":5654.999999999999,"d":"5,655.00₴"}}]
[null,"3-456-2","2 - Contoso, Ltd",{"$f":"TODAY()+10","v":{"v":43686,"d":"4368600.00%"}},"Проект 2",{"v":0.0875,"d":"8.75%"},null,null,{"$f":"SUMIF(Відомостіпрорахунокфактуру[№ рахунка],\"=\"&Рахунки_фактуриОсновний[[#This Row],[№ рахунка]],Відомостіпрорахунокфактуру[Підсумок])","v":{"v":2014,"d":"2,014.00₴"}},{"$f":"(Рахунки_фактуриОсновний[[#This Row],[Всього без ПДВ]]*(1+Рахунки_фактуриОсновний[[#This Row],[Податкова ставка]]))+Рахунки_фактуриОсновний[[#This Row],[Інше]]-Рахунки_фактуриОсновний[[#This Row],[Задаток]]","v":{"v":2190.225,"d":"2,190.23₴"}}]
[null,"Підсумки",{"$f":"\"Загальна сума рахунків: \"&SUBTOTAL(103,Рахунки_фактуриОсновний[№ рахунка])","v":"Загальна сума рахунків: 2"},{"$nulls":3},{"$f":"SUBTOTAL(109,Рахунки_фактуриОсновний[Інше])","v":{"v":100,"d":"100.00₴"}},{"$f":"SUBTOTAL(109,Рахунки_фактуриОсновний[Задаток])","v":{"v":100,"d":"100.00₴"}},{"$f":"SUBTOTAL(109,Рахунки_фактуриОсновний[Всього без ПДВ])","v":{"v":7214,"d":"7,214.00₴"}},{"$f":"SUBTOTAL(109,Рахунки_фактуриОсновний[Всього до сплати])","v":{"v":7845.2249999999985,"d":"7,845.23₴"}}]

{"sheet":"Відомості про рахунок-фактуру","index":3,"n_rows":40,"n_cols":8,"rows_kept":40}
[]
[null,"Відомості про рахунок-фактуру"]
[null,"Опис","№ рахунка","№ позиції","К-сть","Ціна за одиницю","Знижка","Підсумок"]
[null,"Дані 1 рахунка-фактури 3-456-1","3-456-1",1,1,{"v":1,"d":"1.00₴"},{"v":1,"d":"1.00₴"},{"$f":"(Відомостіпрорахунокфактуру[[#This Row],[К-сть]]*Відомостіпрорахунокфактуру[[#This Row],[Ціна за одиницю]])-Відомостіпрорахунокфактуру[[#This Row],[Знижка]]","v":{"v":0,"d":"0.00₴"}}]
[null,"Дані 2 рахунка-фактури 3-456-1","3-456-1",2,2,{"v":2,"d":"2.00₴"},{"v":2,"d":"2.00₴"},{"$f":"(Відомостіпрорахунокфактуру[[#This Row],[К-сть]]*Відомостіпрорахунокфактуру[[#This Row],[Ціна за одиницю]])-Відомостіпрорахунокфактуру[[#This Row],[Знижка]]","v":{"v":2,"d":"2.00₴"}}]
[null,"Дані 3 рахунка-фактури 3-456-1","3-456-1",3,3,{"v":3,"d":"3.00₴"},{"v":3,"d":"3.00₴"},{"$f":"(Відомостіпрорахунокфактуру[[#This Row],[К-сть]]*Відомостіпрорахунокфактуру[[#This Row],[Ціна за одиницю]])-Відомостіпрорахунокфактуру[[#This Row],[Знижка]]","v":{"v":6,"d":"6.00₴"}}]
[null,"Дані 4 рахунка-фактури 3-456-1","3-456-1",4,4,{"v":4,"d":"4.00₴"},{"v":4,"d":"4.00₴"},{"$f":"(Відомостіпрорахунокфактуру[[#This Row],[К-сть]]*Відомостіпрорахунокфактуру[[#This Row],[Ціна за одиницю]])-Відомостіпрорахунокфактуру[[#This Row],[Знижка]]","v":{"v":12,"d":"12.00₴"}}]
[null,"Дані 5 рахунка-фактури 3-456-1","3-456-1",5,5,{"v":5,"d":"5.00₴"},{"v":5,"d":"5.00₴"},{"$f":"(Відомостіпрорахунокфактуру[[#This Row],[К-сть]]*Відомостіпрорахунокфактуру[[#This Row],[Ціна за одиницю]])-Відомостіпрорахунокфактуру[[#This Row],[Знижка]]","v":{"v":20,"d":"20.00₴"}}]
[null,"Дані 6 рахунка-фактури 3-456-1","3-456-1",6,6,{"v":6,"d":"6.00₴"},{"v":6,"d":"6.00₴"},{"$f":"(Відомостіпрорахунокфактуру[[#This Row],[К-сть]]*Відомостіпрорахунокфактуру[[#This Row],[Ціна за одиницю]])-Відомостіпрорахунокфактуру[[#This Row],[Знижка]]","v":{"v":30,"d":"30.00₴"}}]
[null,"Дані 7 рахунка-фактури 3-456-1","3-456-1",7,7,{"v":7,"d":"7.00₴"},{"v":7,"d":"7.00₴"},{"$f":"(Відомостіпрорахунокфактуру[[#This Row],[К-сть]]*Відомостіпрорахунокфактуру[[#This Row],[Ціна за одиницю]])-Відомостіпрорахунокфактуру[[#This Row],[Знижка]]","v":{"v":42,"d":"42.00₴"}}]
[null,"Дані 8 рахунка-фактури 3-456-1","3-456-1",8,8,{"v":8,"d":"8.00₴"},{"v":8,"d":"8.00₴"},{"$f":"(Відомостіпрорахунокфактуру[[#This Row],[К-сть]]*Відомостіпрорахунокфактуру[[#This Row],[Ціна за одиницю]])-Відомостіпрорахунокфактуру[[#This Row],[Знижка]]","v":{"v":56,"d":"56.00₴"}}]
[null,"Дані 9 рахунка-фактури 3-456-1","3-456-1",9,9,{"v":9,"d":"9.00₴"},{"v":9,"d":"9.00₴"},{"$f":"(Відомостіпрорахунокфактуру[[#This Row],[К-сть]]*Відомостіпрорахунокфактуру[[#This Row],[Ціна за одиницю]])-Відомостіпрорахунокфактуру[[#This Row],[Знижка]]","v":{"v":72,"d":"72.00₴"}}]
[null,"Дані 10 рахунка-фактури 3-456-1","3-456-1",10,10,{"v":10,"d":"10.00₴"},{"v":10,"d":"10.00₴"},{"$f":"(Відомостіпрорахунокфактуру[[#This Row],[К-сть]]*Відомостіпрорахунокфактуру[[#This Row],[Ціна за одиницю]])-Відомостіпрорахунокфактуру[[#This Row],[Знижка]]","v":{"v":90,"d":"90.00₴"}}]
[null,"Дані 11 рахунка-фактури 3-456-1","3-456-1",11,11,{"v":11,"d":"11.00₴"},{"v":11,"d":"11.00₴"},{"$f":"(Відомостіпрорахунокфактуру[[#This Row],[К-сть]]*Відомостіпрорахунокфактуру[[#This Row],[Ціна за одиницю]])-Відомостіпрорахунокфактуру[[#This Row],[Знижка]]","v":{"v":110,"d":"110.00₴"}}]
[null,"Дані 12 рахунка-фактури 3-456-1","3-456-1",12,12,{"v":12,"d":"12.00₴"},{"v":12,"d":"12.00₴"},{"$f":"(Відомостіпрорахунокфактуру[[#This Row],[К-сть]]*Відомостіпрорахунокфактуру[[#This Row],[Ціна за одиницю]])-Відомостіпрорахунокфактуру[[#This Row],[Знижка]]","v":{"v":132,"d":"132.00₴"}}]
[null,"Дані 13 рахунка-фактури 3-456-1","3-456-1",13,13,{"v":13,"d":"13.00₴"},{"v":13,"d":"13.00₴"},{"$f":"(Відомостіпрорахунокфактуру[[#This Row],[К-сть]]*Відомостіпрорахунокфактуру[[#This Row],[Ціна за одиницю]])-Відомостіпрорахунокфактуру[[#This Row],[Знижка]]","v":{"v":156,"d":"156.00₴"}}]
[null,"Дані 14 рахунка-фактури 3-456-1","3-456-1",14,14,{"v":14,"d":"14.00₴"},{"v":14,"d":"14.00₴"},{"$f":"(Відомостіпрорахунокфактуру[[#This Row],[К-сть]]*Відомостіпрорахунокфактуру[[#This Row],[Ціна за одиницю]])-Відомостіпрорахунокфактуру[[#This Row],[Знижка]]","v":{"v":182,"d":"182.00₴"}}]
[null,"Дані 15 рахунка-фактури 3-456-1","3-456-1",15,15,{"v":15,"d":"15.00₴"},{"v":15,"d":"15.00₴"},{"$f":"(Відомостіпрорахунокфактуру[[#This Row],[К-сть]]*Відомостіпрорахунокфактуру[[#This Row],[Ціна за одиницю]])-Відомостіпрорахунокфактуру[[#This Row],[Знижка]]","v":{"v":210,"d":"210.00₴"}}]
[null,"Дані 16 рахунка-фактури 3-456-1","3-456-1",16,16,{"v":16,"d":"16.00₴"},{"v":16,"d":"16.00₴"},{"$f":"(Відомостіпрорахунокфактуру[[#This Row],[К-сть]]*Відомостіпрорахунокфактуру[[#This Row],[Ціна за одиницю]])-Відомостіпрорахунокфактуру[[#This Row],[Знижка]]","v":{"v":240,"d":"240.00₴"}}]
[null,"Дані 17 рахунка-фактури 3-456-1","3-456-1",17,17,{"v":17,"d":"17.00₴"},{"v":17,"d":"17.00₴"},{"$f":"(Відомостіпрорахунокфактуру[[#This Row],[К-сть]]*Відомостіпрорахунокфактуру[[#This Row],[Ціна за одиницю]])-Відомостіпрорахунокфактуру[[#This Row],[Знижка]]","v":{"v":272,"d":"272.00₴"}}]
[null,"Дані 18 рахунка-фактури 3-456-1","3-456-1",18,18,{"v":18,"d":"18.00₴"},{"v":18,"d":"18.00₴"},{"$f":"(Відомостіпрорахунокфактуру[[#This Row],[К-сть]]*Відомостіпрорахунокфактуру[[#This Row],[Ціна за одиницю]])-Відомостіпрорахунокфактуру[[#This Row],[Знижка]]","v":{"v":306,"d":"306.00₴"}}]
[null,"Дані 19 рахунка-фактури 3-456-1","3-456-1",19,19,{"v":19,"d":"19.00₴"},{"v":19,"d":"19.00₴"},{"$f":"(Відомостіпрорахунокфактуру[[#This Row],[К-сть]]*Відомостіпрорахунокфактуру[[#This Row],[Ціна за одиницю]])-Відомостіпрорахунокфактуру[[#This Row],[Знижка]]","v":{"v":342,"d":"342.00₴"}}]
[null,"Дані 20 рахунка-фактури 3-456-1","3-456-1",20,20,{"v":20,"d":"20.00₴"},{"v":20,"d":"20.00₴"},{"$f":"(Відомостіпрорахунокфактуру[[#This Row],[К-сть]]*Відомостіпрорахунокфактуру[[#This Row],[Ціна за одиницю]])-Відомостіпрорахунокфактуру[[#This Row],[Знижка]]","v":{"v":380,"d":"380.00₴"}}]
[null,"Дані 21 рахунка-фактури 3-456-1","3-456-1",21,21,{"v":21,"d":"21.00₴"},{"v":21,"d":"21.00₴"},{"$f":"(Відомостіпрорахунокфактуру[[#This Row],[К-сть]]*Відомостіпрорахунокфактуру[[#This Row],[Ціна за одиницю]])-Відомостіпрорахунокфактуру[[#This Row],[Знижка]]","v":{"v":420,"d":"420.00₴"}}]
[null,"Дані 22 рахунка-фактури 3-456-1","3-456-1",22,22,{"v":22,"d":"22.00₴"},{"v":22,"d":"22.00₴"},{"$f":"(Відомостіпрорахунокфактуру[[#This Row],[К-сть]]*Відомостіпрорахунокфактуру[[#This Row],[Ціна за одиницю]])-Відомостіпрорахунокфактуру[[#This Row],[Знижка]]","v":{"v":462,"d":"462.00₴"}}]
[null,"Дані 23 рахунка-фактури 3-456-1","3-456-1",23,23,{"v":23,"d":"23.00₴"},{"v":23,"d":"23.00₴"},{"$f":"(Відомостіпрорахунокфактуру[[#This Row],[К-сть]]*Відомостіпрорахунокфактуру[[#This Row],[Ціна за одиницю]])-Відомостіпрорахунокфактуру[[#This Row],[Знижка]]","v":{"v":506,"d":"506.00₴"}}]
[null,"Дані 24 рахунка-фактури 3-456-1","3-456-1",24,24,{"v":24,"d":"24.00₴"},{"v":24,"d":"24.00₴"},{"$f":"(Відомостіпрорахунокфактуру[[#This Row],[К-сть]]*Відомостіпрорахунокфактуру[[#This Row],[Ціна за одиницю]])-Відомостіпрорахунокфактуру[[#This Row],[Знижка]]","v":{"v":552,"d":"552.00₴"}}]
[null,"Дані 25 рахунка-фактури 3-456-1","3-456-1",25,25,{"v":25,"d":"25.00₴"},{"v":25,"d":"25.00₴"},{"$f":"(Відомостіпрорахунокфактуру[[#This Row],[К-сть]]*Відомостіпрорахунокфактуру[[#This Row],[Ціна за одиницю]])-Відомостіпрорахунокфактуру[[#This Row],[Знижка]]","v":{"v":600,"d":"600.00₴"}}]
[null,"Дані 1 рахунка-фактури 3-456-2","3-456-2","Z4567",39,{"v":5,"d":"5.00₴"},null,{"$f":"(Відомостіпрорахунокфактуру[[#This Row],[К-сть]]*Відомостіпрорахунокфактуру[[#This Row],[Ціна за одиницю]])-Відомостіпрорахунокфактуру[[#This Row],[Знижка]]","v":{"v":195,"d":"195.00₴"}}]
[null,"Дані 2 рахунка-фактури 3-456-2","3-456-2","Z4568",40,{"v":4,"d":"4.00₴"},{"v":5,"d":"5.00₴"},{"$f":"(Відомостіпрорахунокфактуру[[#This Row],[К-сть]]*Відомостіпрорахунокфактуру[[#This Row],[Ціна за одиницю]])-Відомостіпрорахунокфактуру[[#This Row],[Знижка]]","v":{"v":155,"d":"155.00₴"}}]
[null,"Дані 3 рахунка-фактури 3-456-2","3-456-2","Z4569",30,{"v":6,"d":"6.00₴"},{"v":7,"d":"7.00₴"},{"$f":"(Відомостіпрорахунокфактуру[[#This Row],[К-сть]]*Відомостіпрорахунокфактуру[[#This Row],[Ціна за одиницю]])-Відомостіпрорахунокфактуру[[#This Row],[Знижка]]","v":{"v":173,"d":"173.00₴"}}]
[null,"Дані 4 рахунка-фактури 3-456-2","3-456-2","Z4570",40,{"v":7,"d":"7.00₴"},null,{"$f":"(Відомостіпрорахунокфактуру[[#This Row],[К-сть]]*Відомостіпрорахунокфактуру[[#This Row],[Ціна за одиницю]])-Відомостіпрорахунокфактуру[[#This Row],[Знижка]]","v":{"v":280,"d":"280.00₴"}}]
[null,"Дані 5 рахунка-фактури 3-456-2","3-456-2","Z4571",10,{"v":4,"d":"4.00₴"},null,{"$f":"(Відомостіпрорахунокфактуру[[#This Row],[К-сть]]*Відомостіпрорахунокфактуру[[#This Row],[Ціна за одиницю]])-Відомостіпрорахунокфактуру[[#This Row],[Знижка]]","v":{"v":40,"d":"40.00₴"}}]
[null,"Дані 6 рахунка-фактури 3-456-2","3-456-2","Z4572",5,{"v":8,"d":"8.00₴"},null,{"$f":"(Відомостіпрорахунокфактуру[[#This Row],[К-сть]]*Відомостіпрорахунокфактуру[[#This Row],[Ціна за одиницю]])-Відомостіпрорахунокфактуру[[#This Row],[Знижка]]","v":{"v":40,"d":"40.00₴"}}]
[null,"Дані 7 рахунка-фактури 3-456-2","3-456-2","Z4573",70,{"v":6,"d":"6.00₴"},null,{"$f":"(Відомостіпрорахунокфактуру[[#This Row],[К-сть]]*Відомостіпрорахунокфактуру[[#This Row],[Ціна за одиницю]])-Відомостіпрорахунокфактуру[[#This Row],[Знижка]]","v":{"v":420,"d":"420.00₴"}}]
[null,"Дані 8 рахунка-фактури 3-456-2","3-456-2","Z4574",25,{"v":4,"d":"4.00₴"},null,{"$f":"(Відомостіпрорахунокфактуру[[#This Row],[К-сть]]*Відомостіпрорахунокфактуру[[#This Row],[Ціна за одиницю]])-Відомостіпрорахунокфактуру[[#This Row],[Знижка]]","v":{"v":100,"d":"100.00₴"}}]
[null,"Дані 9 рахунка-фактури 3-456-2","3-456-2","Z4575",5,{"v":7,"d":"7.00₴"},{"v":3,"d":"3.00₴"},{"$f":"(Відомостіпрорахунокфактуру[[#This Row],[К-сть]]*Відомостіпрорахунокфактуру[[#This Row],[Ціна за одиницю]])-Відомостіпрорахунокфактуру[[#This Row],[Знижка]]","v":{"v":32,"d":"32.00₴"}}]
[null,"Дані 10 рахунка-фактури 3-456-2","3-456-2","Z4576",80,{"v":1,"d":"1.00₴"},null,{"$f":"(Відомостіпрорахунокфактуру[[#This Row],[К-сть]]*Відомостіпрорахунокфактуру[[#This Row],[Ціна за одиницю]])-Відомостіпрорахунокфактуру[[#This Row],[Знижка]]","v":{"v":80,"d":"80.00₴"}}]
[null,"Дані 11 рахунка-фактури 3-456-2","3-456-2","Z4577",65,{"v":7,"d":"7.00₴"},null,{"$f":"(Відомостіпрорахунокфактуру[[#This Row],[К-сть]]*Відомостіпрорахунокфактуру[[#This Row],[Ціна за одиницю]])-Відомостіпрорахунокфактуру[[#This Row],[Знижка]]","v":{"v":455,"d":"455.00₴"}}]
[null,"Дані 12 рахунка-фактури 3-456-2","3-456-2","Z4578",44,{"v":1,"d":"1.00₴"},null,{"$f":"(Відомостіпрорахунокфактуру[[#This Row],[К-сть]]*Відомостіпрорахунокфактуру[[#This Row],[Ціна за одиницю]])-Відомостіпрорахунокфактуру[[#This Row],[Знижка]]","v":{"v":44,"d":"44.00₴"}}]

{"sheet":"Про журнал рахунків-фактур","index":4,"n_rows":40,"n_cols":3,"rows_kept":40,"merged":[[3,1,3,7],[4,1,4,7],[5,1,5,7],[6,1,6,7],[7,2,7,7],[8,2,8,7],[9,2,9,7],[10,2,10,7],[11,2,11,7],[12,1,12,7],[13,2,13,3],[14,2,14,7],[15,1,15,7],[16,2,16,7],[17,2,17,7],[18,2,18,7],[19,2,19,7],[20,2,20,7],[21,2,21,7],[22,1,22,7],[23,1,23,7],[24,2,24,7],[25,2,25,7],[26,2,26,7],[27,2,27,7],[28,1,28,7],[29,1,29,7],[30,2,30,7],[31,2,31,7],[32,2,32,7],[33,2,33,7],[34,2,34,7],[36,2,36,7],[37,2,37,7],[38,2,38,7],[39,2,39,7]]}
[null,"Про Журнал рахунків-фактур"]
[]
[]
[null,"Журнал рахунків-фактур розроблений для збереження історії клієнтів, рахунків-фактур та відомостей про товари/послуги і дає можливість зберігати багато рахунків-фактур в одному файлі. Крім того, за допомогою цього журналу можна аналізувати відомості про раніше виписані рахунки-фактури. Наприклад, ви можете переглянути всі рахунки-фактури, виставлені певному клієнту чи в межах певного проекту, або відобразити всі рахунки-фактури за останній місяць, останній рік тощо."]
[null,"Перед початком роботи, ознайомтеся з наданими зразками даних. На аркуші \"Рахунок-фактура\" виберіть клітинку праворуч від № рахунка-фактури (клітинка L8),щоб відобразити розкривний список. Натисніть стрілку розкривного списку, а потім виберіть зразок рахунка-фактури. Зверніть увагу, що всі дані рахунка-фактури автоматично змінюються відповідно до вибраного рахунка. Тепер погляньте на аркуші \"Клієнти\", \"Рахунки-фактури - основне\" та \"Відомості про товари/послуги\". Інформація для створення рахунка-фактури підтягується з кожного із цих аркушів, забезпечуючи автоматичне оновлення даних при внесенні змін. "]
[null,"Початок роботи"]
[null,"Змініть аркуш \"Рахунок-фактура\", щоб він відображав відомості про вашу компанію, виконавши наведені нижче дії."]
[null,"1.","Перейдіть до аркуша Рахунок-фактура і на вкладці Рецензування в групі Захист виберіть Зняти захист аркуша. "]
[null,null,"Примітка. Аркуш \"Рахунок-фактура\" захищено, щоб уникнути ненавмисних змін, оскільки, як згадувалося раніше, більшість даних на цьому аркуші підтягуються з усіх інших аркушів книги. "]
[null,"2.","Персоналізуйте заголовок рахунка-фактури, ввівши назву компанії, вулицю та номер будинку, місто, область, поштовий індекс, адресу електронної пошти, веб-сайт тощо. У нижній частині рахунка-фактури (рядок 43) змініть платіжні інструкції. "]
[null,null,"Увага! Не змінюйте відомості про оплату або рахунок-фактуру. Як було зазначено в розділі \"Про журнал рахунків-фактур\", усі ці клітинки містять формули, які автоматично оновлюють рахунок-фактуру. "]
[null,"3.","(Необов'язково) Зміна кольорів усієї книги. На вкладці Макет сторінки в групі Теми натисніть Кольори, а потім виберіть інший набір кольорів теми з колекції кольорів. "]
[null,"Порада. Створіть особливий набір кольорів теми, який відповідатиме бренду вашої компанії! Для цього на вкладці Макет сторінки в групі Теми натисніть Кольори, а потім виберіть Настроїти кольори. Щоб отримати додаткові відомості про те, як створити особливий набір кольорів, перегляньте такий розділ довідки: "]
[null,null,"Настроювання теми документа."]
[null,"4.","Після внесення потрібних змін поверніться до аркуша \"Рахунок-фактура\" і на вкладці \"Рецензування\" в групі \"Зміни\" виберіть \"Захистити аркуш\", а потім натисніть кнопку \"ОК\". Якщо аркуш \"Рахунок-фактура\" захищено, єдина клітинка, яку ви можете вибрати, – це клітинка з розкривним списком \"№ рахунку-фактури\"."]
[null,"Створення рахунка-фактури"]
[null,"1.","На аркуші \"Клієнти\" введіть відомості про клієнта, наприклад, назву та адресу компанії. Зверніть увагу, що № компанії – це важливий запис, оскільки він присвоює унікальний ідентифікатор кожній компанії, яка внесена до Журналу рахунків-фактур. Крім того, зверніть увагу, що відомості про компанію потрібно вводити лише один раз. Для подальшого виставлення рахунків тій самій компанії, цей крок можна пропустити. "]
[null,null,"Примітка. Якщо ви призначите той самий номер кільком компаніям або введете назву однієї компанії кілька разів, ці записи стануть червоними, щоб сповістити вас про повторення. "]
[null,"2.","На аркуші \"Рахунки-фактури - основне\" вводяться першочергові відомості про рахунок-фактуру, як-от, № рахунка-фактури, дата виставлення рахунка та опис проекту. Так само, як і № компанії, № рахунка-фактури – це важливий запис, оскільки він присвоює унікальний ідентифікатор кожному рахунку, що внесений до Журналу рахунків-фактур. Інший важливий запис – це назва компанії. Коли ви вибираєте назву компанії з наявного розкривного списку, рахунок-фактура пов'язується з цією компанією. Потім, коли ви вибираєте № рахунку на аркуші \"Рахунок-фактура\", відомості про компанію, як-от назва компанії та адреса, будуть заповнені автоматично."]
[null,null,"Примітка. Якщо ви призначите той самий номер кільком рахункам-фактурам, ці записи стануть червоними, щоб сповістити вас про повторення. "]
[null,"3.","На аркуші \"Відомості про товари/послуги\" введіть відомості для виставлення рахунка-фактури, як-от опис товару, № товару, кількість та ціна за одиницю. Щоб спростити введення даних, у розкривну списку клітинки \"№ рахунка-фактури\" наведено перелік рахунків, введених на аркуші \"Рахунки-фактури - основне\". Так само, як і № компанії, що було описано вище, № рахунка-фактури пов'язується з певним рахунком-фактурою. При виборі № рахунка на аркуші \"Рахунок-фактура\" з розкривного списку клітинки \"№ рахунка-фактури\", будуть відображатися введені позиції товарів/послуг відповідного рахунка-фактури."]
[null,null,"Примітка. Максимальна кількість позицій для одного рахунку-фактури – 25. Якщо буде додано понад 25 позицій, усі відповідні записи стануть червоними, щоб сповістити вас про обмеження. При потребі включити до рахунка-фактури понад 25 позицій, необхідно створити другий рахунок. "]
[null,"Додавання клієнтів, рахунків-фактур та відомостей про товари/послуги"]
[null,"Дані про клієнтів, рахунки-фактури і відомості про товари/послуги зберігаються в таблицях Excel. При додаванні нового рядка до таблиці, його буде відформатовано автоматично, а всі обчислення буде скопійовано. Щоб додати нові рядки до таблиці, виконайте одну з наведених нижче дій."]
[null,"● ","Якщо в таблиці немає рядка підсумків, почніть вводити дані під таблицею і вона автоматично розшириться, коли ви натиснете клавішу Enter або Tab."]
[null,"● ","Розмістіть курсор в останній клітинці над рядком підсумків (наприклад, у таблиці \"Рахунки-фактури\" – це клітинка \"Примітки\" для останнього рахунку) і натисніть клавішу Tab."]
[null,"● ","На вкладці Основнеу групі Клітинки натисніть Вставити, а потім виберіть пункт Рядок таблиці вище або Рядок таблиці нижче. "]
[null,"● ","Щоб збільшити кількість доступних рядків таблиці, перетягніть униз маркер змінення розміру таблиці в її нижньому правому куті."]
[null,"Аналіз відомостей про товари/послуги"]
[null,"Як зазначено в розділі \"Про журнал рахунків-фактур\", ввівши кілька рахунків-фактур, ви зможете переглянути список всіх рахунків, виставлених певному клієнту, в межах проекту чи вказаного інтервалу дат і багато іншого. Цей тип аналізу здійснюється за допомогою фільтру, який дає змогу швидко звузити список даних. Щоб перейти до фільтру для таблиць \"Клієнти\", \"Рахунки-фактури\" або \"Відомості про товари/послуги\", клацніть стрілку розкривного списку поруч з іменем поля таблиці. В області \"Фільтр\" відобразяться різноманітні параметри фільтрування. Ось кілька прикладів фільтрування, які допоможуть вам почати роботу."]
[null,"● ","Перегляд загальної суми, на яку виставлено рахунки певному клієнту. На основному аркуші рахунків-фактур, праворуч від поля \"№ компанії\" натисніть стрілку розкривного списку. В області \"Фільтр\" натисніть \"Виділити все\", щоб зняти виділення з усіх компаній. Потім виберіть потрібну компанію і натисніть кнопку \"OK\". "]
[null,null,"Порада. В області Фільтртакож можна ввести ім'я клієнта в текстовому полі Пошук, щоб швидко здійснити пошук у наявному списку."]
[null,"● ","Перегляд усіх рахунків-фактур, виставлених певному клієнту або в межах певних проектів. Почніть із застосування фільтру для бажаного клієнта, виконуючи дії, наведені в попередньому прикладі. Потім праворуч від клітинки \"№ проекту\" натисніть стрілку розкривного списку. В області \"Фільтр\" виберіть потрібний проект або проекти, а потім натисніть кнопку \"OK\". "]
[null,"● ","Перегляд всіх рахунків-фактур за попередній місяць. На аркуші \"Рахунки-фактури - основне\" праворуч від поля \"Дата виставлення рахунка\" натисніть стрілку розкривного списку, потім наведіть вказівник миші на пункт \"Фільтри дати\" і виберіть пункт \"Останній місяць\"."]
[null,"● ","Перегляд списку всіх клієнтів із однаковим телефонним кодом міста: На аркуші \"Клієнти\" праворуч від поля \"Телефон\" натисніть стрілку розкривного списку. В області \"Фільтр\" клацніть у текстовому полі \"Пошук\", введіть телефонний код міста, а потім натисніть кнопку OK. "]
[null,"Поради щодо фільтрування"]
[null,"● ","Якщо таблиця містить рядок підсумків, як-от \"Клієнти\" або \"Рахунки-фактури\", в обчислених підсумках буде відображено лише відфільтрований список."]
[null,"● ","Використовуйте кілька фільтрів для одного поля або кількох полів для тонкої настройки результатів."]
[null,"● ","Щоб видалити один фільтр, натисніть стрілку розкривного списку для попередньо відфільтрованого стовпця, а потім виберіть пункт Видалити фільтр з <ім'я поля>."]
[null,"● ","Щоб видалити кілька фільтрів одночасно, розмістіть курсор в таблиці, а потім на вкладці Основне в групі Редагування виберіть Сортувати й фільтрувати і натисніть кнопку Очистити."]